bitfinex/quotes_ETHUSD_20240924
["timestamp","ask_amount","ask_price","bid_price","bid_amount"]
[1727194422620,7.64078,2617.6,2617.1,4.6037]
[1727194422818,0.09551678,2617.5,2617.1,4.6037]
[1727194423007,3.82049,2617.5,2617.1,4.6037]
[1727194423798,0.09551677,2617.4,2616.8,0.7827]
[1727194424140,3.82076,2617.3,2616.8,4.60405]
[1727194424301,3.91621677,2617.4,2617.2,0.004]
[1727194424632,3.91621677,2617.4,2617.3,0.004]
[1727194424795,3.8207,2617.4,2617.3,0.004]
[1727194425704,4.615,2617.4,2617.3,0.004]
[1727194425942,3.82087,2617.2,2617.1,0.004]
[1727194426099,3.82104,2617.1,2616.8,0.7827]
[1727194426299,3.82104,2617.1,2616.9,0.004]
[1727194429338,3.82089,2617.2,2616.9,0.004]
[1727194429506,3.82089,2617.2,2617.1,0.004]
[1727194430840,3.82116,2617.0,2616.9,0.004]
[1727194431217,3.8208,2617.3,2616.9,0.004]
[1727194431406,3.8208,2617.3,2616.9,0.7726]
[1727194431726,3.8208,2617.3,2617.2,0.004]
[1727194432133,4.9487754,2617.3,2617.2,0.004]
[1727194432313,3.82098,2617.2,2616.9,0.7686]
[1727194433025,4.9487754,2617.3,2616.9,0.7686]
[1727194433227,3.82156,2616.8,2616.6,0.0379928]
[1727194433432,2.84405403,2617.1,2616.6,0.0419928]
[1727194433433,4.63407,2617.0,2616.6,0.0419928]
[1727194433619,3.82132,2616.9,2616.6,0.0379928]
[1727194434412,3.82127,2617.0,2616.6,3.8597328]
[1727194434630,3.82127,2617.0,2616.7,0.7686]
[1727194434826,3.82133,2616.9,2616.7,0.7686]
[1727194435034,3.82127,2617.0,2616.7,0.7686]
[1727194435347,3.82088,2617.2,2616.7,4.59019]
[1727194435555,3.82088,2617.2,2617.1,0.004]
[1727194435838,3.82073,2617.3,2617.1,0.004]
[1727194436047,7.38,2617.4,2617.2,0.004]
[1727194436048,11.2006,2617.4,2617.2,0.004]
[1727194436250,6.8206,2617.4,2617.3,0.004]
[1727194436419,7.965993,2617.4,2617.3,0.004]
[1727194437636,3.82097,2617.2,2617.0,0.004]
[1727194437839,3.82097,2617.2,2617.1,0.004]
[1727194443652,3.82053,2617.5,2617.1,0.004]
[1727194443856,3.82053,2617.5,2617.2,0.7917]
[1727194444038,3.82053,2617.5,2617.4,0.004]
[1727194444238,3.82025,2617.7,2617.4,0.004]
[1727194444553,3.82025,2617.7,2617.6,0.004]
[1727194448030,3.82001,2617.8,2617.6,0.7917]
[1727194448229,3.81953,2618.2,2617.7,0.004]
[1727194448474,3.81934,2618.3,2618.1,0.004]
[1727194448631,3.81892,2618.6,2618.2,0.004]
[1727194448973,3.81892,2618.6,2618.5,0.004]
[1727194449130,3.8187,2618.7,2618.5,0.004]
[1727194449329,4.5638554,2618.7,2618.6,0.004]
[1727194449564,3.8187,2618.7,2618.6,0.004]
[1727194449943,3.81856,2618.8,2618.6,0.004]
[1727194450139,7.63724,2618.8,2618.6,0.7917]
[1727194450355,3.81868,2618.7,2618.6,0.004]
[1727194452765,4.8668094,2618.7,2618.6,0.004]
[1727194453238,3.81912,2618.4,2618.3,0.004]
[1727194453568,6.66317403,2618.4,2618.3,0.004]
[1727194455042,3.81912,2618.4,2618.3,0.004]
[1727194459975,3.81899,2618.5,2618.3,0.004]
[1727194462356,7.63805,2618.5,2618.3,0.004]
[1727194462597,3.81899,2618.5,2618.3,0.004]
[1727194463097,7.63806,2618.5,2618.3,0.004]
[1727194463298,3.81899,2618.5,2618.3,0.004]
[1727194463508,3.81912,2618.4,2618.3,0.004]
[1727194464293,3.81885,2618.6,2618.3,0.004]
[1727194464494,3.81885,2618.6,2618.4,0.7877]
[1727194464700,3.81898,2618.5,2618.4,0.7877]
[1727194465294,3.81885,2618.6,2618.4,0.7877]
[1727194466587,3.8188,2618.7,2618.4,0.7877]
[1727194466923,7.63756,2618.7,2618.4,0.7877]
[1727194467076,3.81876,2618.7,2618.4,0.7877]
[1727194467416,3.81891,2618.6,2618.4,0.7877]
[1727194468105,3.81883,2618.6,2618.4,0.7877]
[1727194468405,4.4850414,2618.7,2618.4,0.7877]
[1727194468594,3.81898,2618.5,2618.2,0.7877]
[1727194470713,7.63757,2618.7,2618.2,4.60705]
[1727194470889,3.81876,2618.7,2618.6,0.004]
[1727194476010,4.8668964,2618.7,2618.6,0.004]
[1727194478216,3.81876,2618.7,2618.6,0.004]
[1727194481631,3.81848,2618.9,2618.6,0.004]
[1727194481927,3.81865,2618.8,2618.6,0.004]
[1727194483694,3.81868,2618.7,2618.6,0.004]
[1727194487140,3.81854,2618.8,2618.6,0.004]
[1727194488150,2.84405403,2619.1,2618.6,0.004]
[1727194488304,3.81858,2618.8,2618.6,0.004]
[1727194488504,7.6372,2618.8,2618.6,0.004]
[1727194489002,3.81858,2618.8,2618.6,0.004]
[1727194489197,7.6372,2618.8,2618.6,0.004]
[1727194490315,3.81858,2618.8,2618.6,0.004]
[1727194490527,3.81858,2618.8,2618.7,0.8003]
[1727194490729,3.81858,2618.8,2618.7,0.8043]
[1727194491135,3.8183,2619.0,2618.7,0.8043]
[1727194491371,3.8184,2618.9,2618.7,0.8003]
[1727194494059,3.81773,2619.4,2618.9,4.69495156]
[1727194494243,3.8176,2619.5,2619.0,3.81823]
[1727194494446,3.8176,2619.5,2619.1,0.8003]
[1727194494876,3.81738,2619.6,2619.1,4.6946574]
[1727194495133,3.8552328,2619.7,2619.2,4.61819]
[1727194495269,3.8552328,2619.7,2619.6,0.004]
[1727194495601,0.0379928,2619.7,2619.6,0.004]
[1727194496091,0.0379928,2619.7,2619.6,0.8043]
[1727194497072,0.0379928,2619.7,2619.6,4.62167]
[1727194497789,0.0379928,2619.7,2619.6,4.69800638]
[1727194498161,0.0379928,2619.7,2619.6,5.17167]
[1727194500906,0.0379928,2619.7,2619.6,4.62167]
[1727194501402,0.0379928,2619.7,2619.6,0.8043]
[1727194501910,0.0379928,2619.7,2619.6,4.62167]
[1727194502070,0.0379928,2619.7,2619.6,0.8043]
[1727194503363,0.0379928,2619.7,2619.6,4.62167]
[1727194503981,0.0379928,2619.7,2619.6,0.8043]
[1727194504276,0.0379928,2619.7,2619.6,0.004]
[1727194505382,3.8552228,2619.7,2619.6,0.004]
[1727194505610,6.69927683,2619.7,2619.6,0.004]
[1727194505811,3.8552228,2619.7,2619.6,0.004]
[1727194508016,8.76166267,2619.7,2619.6,0.004]
[1727194508194,8.66622451,2619.7,2619.6,0.004]
[1727194509324,3.8552228,2619.7,2619.6,0.004]
[1727194509623,6.69927683,2619.7,2619.6,0.004]
[1727194512417,3.8552228,2619.7,2619.6,0.004]
[1727194512789,0.0379928,2619.7,2619.6,0.796]
[1727194515890,0.0379928,2619.7,2619.6,0.004]
[1727194516097,3.8552228,2619.7,2619.6,0.004]
[1727194516584,8.52139851,2619.7,2619.6,0.004]
[1727194516790,7.46977683,2619.7,2619.6,0.004]
[1727194517310,7.56522936,2619.7,2619.6,0.004]
[1727194517805,7.56522936,2619.7,2619.3,0.004]
[1727194517806,4.58816,2619.4,2619.3,0.004]
[1727194518122,4.58816,2619.4,2619.1,0.004]
[1727194518123,3.81795,2619.2,2619.1,0.004]
[1727194519822,6.66200403,2619.2,2619.1,0.004]
[1727194520384,3.71001594,2619.2,2618.9,0.004]
[1727194520621,6.66230403,2619.0,2618.9,0.004]
[1727194521115,6.66230403,2619.0,2618.3,0.8212]
[1727194521116,3.81857,2618.8,2618.3,0.8212]
[1727194521407,2.84405403,2618.6,2618.3,0.8212]
[1727194521732,2.84405403,2618.4,2618.3,0.8212]
[1727194521914,2.84405403,2618.4,2618.0,4.64083]
[1727194522085,2.84405403,2618.4,2618.3,0.004]
[1727194523619,3.81892,2618.6,2618.3,0.004]
[1727194523919,3.8193,2618.3,2617.8,12.05118]
[1727194524145,3.8193,2618.3,2617.8,4.64118]
[1727194525247,3.81899,2618.5,2617.9,3.81971]
[1727194525449,4.58925,2618.7,2618.0,3.81963]
[1727194525764,3.81889,2618.6,2618.1,4.64062]
[1727194526324,3.81905,2618.5,2618.1,0.8212]
[1727194526675,7.50393603,2618.5,2618.4,0.004]
[1727194526962,4.659882,2618.5,2618.4,0.004]
[1727194527122,3.81905,2618.5,2618.4,0.004]
[1727194530673,6.66310403,2618.5,2618.4,0.004]
[1727194531028,3.81927,2618.3,2618.2,0.004]
[1727194531232,3.81942,2618.2,2617.8,4.64109]
[1727194531656,3.81914,2618.4,2617.8,4.64109]
[1727194531857,3.91462861,2618.4,2617.8,4.64109]
[1727194532456,3.81914,2618.4,2617.8,4.64109]
[1727194532653,3.81935,2618.3,2617.8,4.64109]
[1727194533063,7.63837,2618.4,2617.9,3.81985]
[1727194533263,3.81914,2618.4,2618.3,0.004]
[1727194533662,4.58921,2618.7,2618.3,0.004]
[1727194533850,4.58921,2618.7,2618.3,0.7696]
[1727194533851,3.81871,2618.7,2618.3,0.7696]
[1727194534051,4.6326,2618.9,2618.6,0.004]
[1727194534352,4.6326,2618.9,2618.8,0.004]
[1727194536536,0.8141,2618.9,2618.8,0.004]
[1727194536682,4.63249,2618.9,2618.8,0.004]
[1727194537018,3.81826,2619.0,2618.8,0.004]
[1727194537792,3.81804,2619.2,2618.8,0.004]
[1727194537980,3.81811,2619.1,2618.8,0.7696]
[1727194538183,3.81827,2619.0,2618.8,0.7656]
[1727194538379,5.319254,2619.2,2618.6,0.7656]
[1727194538729,3.81812,2619.1,2618.6,4.58442]
[1727194539022,3.81804,2619.2,2618.7,7.63734]
[1727194539227,4.63155,2619.6,2618.9,0.7656]
[1727194539379,4.63155,2619.6,2619.5,0.004]
[1727194545386,4.63155,2619.6,2618.7,3.81857]
[1727194545387,0.8141,2619.4,2619.1,0.004]
[1727194545590,3.81795,2619.2,2619.1,0.004]
[1727194545892,3.81795,2619.2,2618.7,4.58426]
[1727194546186,3.81795,2619.2,2619.1,0.004]
[1727194547687,4.98292712,2619.2,2619.1,0.004]
[1727194548193,4.98292712,2619.2,2618.5,4.61803]
[1727194548194,7.63658,2619.0,2618.5,4.61803]
[1727194548367,7.63658,2619.0,2618.9,0.004]
[1727194548566,8.45478,2619.0,2618.9,0.004]
[1727194549283,9.73674483,2619.0,2618.9,0.004]
[1727194550301,3.81854,2618.8,2618.7,0.004]
[1727194550503,3.81854,2618.8,2618.5,0.7991]
[1727194551487,3.81841,2618.9,2618.5,0.7991]
[1727194551707,3.81841,2618.9,2618.5,4.61806]
[1727194552012,3.81841,2618.9,2618.8,0.004]
[1727194553579,3.81839,2618.9,2618.8,0.004]
[1727194554465,3.81825,2619.0,2618.8,0.004]
[1727194554670,3.81839,2618.9,2618.8,0.004]
[1727194558391,3.81825,2619.0,2618.8,0.004]
[1727194558593,7.63661,2619.0,2618.8,0.004]
[1727194558985,3.81839,2618.9,2618.8,0.004]
[1727194561691,3.81816,2619.1,2618.8,0.004]
[1727194562033,5.71982112,2619.2,2618.8,0.004]
[1727194562034,3.81803,2619.2,2618.8,0.004]
[1727194562328,7.63611,2619.2,2618.9,0.7991]
[1727194562480,4.60815,2619.0,2618.8,0.004]
[1727194562670,4.60815,2619.0,2618.0,0.7994669]
[1727194562671,3.81839,2618.9,2618.2,0.7929]
[1727194562885,3.81839,2618.9,2618.8,0.004]
[1727194563295,3.81828,2619.0,2618.8,0.004]
[1727194565386,3.81818,2619.1,2618.8,0.004]
[1727194565691,3.81792,2619.3,2618.9,0.7929]
[1727194565874,3.81747,2619.6,2619.2,0.004]
[1727194566108,3.81737,2619.6,2619.5,0.004]
[1727194566686,3.81737,2619.6,2619.3,0.004]
[1727194566687,3.81766,2619.4,2619.3,0.004]
[1727194566886,3.81766,2619.4,2618.5,6.81887]
[1727194566887,3.8181,2619.1,2619.0,0.004]
[1727194568220,3.8181,2619.1,2618.7,0.7929]
[1727194568221,0.7899,2619.0,2618.7,0.004]
[1727194568391,3.8182,2619.1,2618.9,0.004]
[1727194569097,3.81796,2619.2,2618.9,0.004]
[1727194569486,3.81791,2619.3,2618.9,0.004]
[1727194569692,3.81798,2619.2,2618.9,0.004]
[1727194569913,3.81822,2619.1,2618.9,0.004]
[1727194571019,3.81812,2619.1,2618.9,0.004]
[1727194572791,3.81825,2619.0,2618.9,0.004]
[1727194572989,4.60815,2619.0,2618.9,0.004]
[1727194575562,3.81852,2618.9,2618.5,0.7929]
[1727194576707,3.81852,2618.9,2618.5,4.61186]
[1727194579657,4.60793,2619.2,2618.7,3.81861]
[1727194579816,10.57989121,2619.5,2619.1,0.004]
[1727194579817,3.81781,2619.4,2619.1,0.004]
[1727194580020,17.59177358,2619.5,2618.7,3.81866]
[1727194580021,3.81808,2619.2,2618.7,3.81866]
[1727194580350,3.98979121,2619.0,2618.6,0.7929]
[1727194580543,7.63698,2618.9,2618.4,3.81905]
[1727194580706,3.81855,2618.8,2618.4,4.61195]
[1727194580908,3.81855,2618.8,2618.7,0.004]
[1727194581759,3.81846,2618.9,2618.7,0.004]
[1727194581925,3.81846,2618.9,2618.8,0.004]
[1727194582554,3.81826,2619.0,2618.8,0.004]
[1727194582758,3.81821,2619.1,2618.8,0.004]
[1727194584661,3.81826,2619.0,2618.8,0.004]
[1727194585955,4.60829,2618.9,2618.8,0.004]
[1727194587150,3.81868,2618.7,2618.6,0.004]
[1727194589989,3.81868,2618.7,2618.3,0.004]
[1727194589990,3.81912,2618.4,2618.3,0.004]
[1727194590136,7.01901121,2618.4,2618.3,0.004]
[1727194590342,3.81912,2618.4,2618.3,0.004]
[1727194592082,7.78311121,2618.4,2618.3,0.004]
[1727194592282,3.8197,2618.0,2617.9,0.004]
[1727194592580,7.78369121,2618.0,2617.9,0.004]
[1727194592781,7.87919596,2618.0,2617.9,0.004]
[1727194592988,3.82,2617.8,2617.4,0.8195]
[1727194593639,3.81986,2617.9,2617.4,0.8195]
[1727194593640,3.82015,2617.7,2617.4,0.8195]
[1727194594368,3.81986,2617.9,2617.4,0.8195]
[1727194594688,7.6398,2617.9,2617.4,0.8195]
[1727194595743,3.82,2617.8,2617.3,3.82064]
[1727194598001,3.82,2617.8,2617.1,12.05042]
[1727194598002,3.82032,2617.6,2617.1,12.05042]
[1727194598159,3.82032,2617.6,2617.1,4.64042]
[1727194598355,0.09551228,2617.5,2617.1,0.8195]
[1727194598581,3.82057,2617.5,2617.4,0.004]
[1727194598783,3.91608985,2617.5,2617.4,0.004]
[1727194599793,3.82102,2617.1,2617.0,0.004]
[1727194600361,7.02078121,2617.2,2617.0,0.004]
[1727194600561,3.82089,2617.2,2617.0,0.004]
[1727194600789,3.82073,2617.3,2617.0,0.004]
[1727194601371,3.82038,2617.6,2617.1,0.8195]
[1727194601716,7.38,2617.7,2617.5,0.004]
[1727194601863,3.82005,2617.8,2617.6,0.004]
[1727194602065,3.82005,2617.8,2617.7,0.004]
[1727194603400,3.81989,2617.9,2617.7,0.004]
[1727194603705,3.81972,2618.0,2617.5,0.8195]
[1727194603706,3.81972,2618.0,2617.8,0.004]
[1727194604608,3.81946,2618.2,2617.8,0.004]
[1727194604817,3.81946,2618.2,2618.1,0.004]
[1727194605107,5.397745,2618.2,2618.1,0.004]
[1727194605310,8.59763621,2618.2,2618.1,0.004]
[1727194605907,5.397745,2618.2,2618.1,0.004]
[1727194606123,3.81946,2618.2,2618.1,0.004]
[1727194606423,3.81922,2618.4,2618.1,0.004]
[1727194607110,3.81935,2618.3,2618.1,0.004]
[1727194607419,3.81941,2618.2,2618.1,0.004]
[1727194607583,3.81935,2618.3,2618.1,0.004]
[1727194607990,3.81941,2618.2,2618.1,0.004]
[1727194608379,3.81935,2618.3,2618.1,0.004]
[1727194609076,7.84140121,2618.2,2618.1,0.004]
[1727194609383,3.8197,2618.0,2617.7,0.004]
[1727194609586,7.84199121,2617.8,2617.7,0.004]
[1727194609815,3.8203,2617.6,2617.4,0.004]
[1727194609970,3.8203,2617.6,2617.3,0.8022]
[1727194611498,3.82016,2617.7,2617.3,0.8022]
[1727194611694,3.82,2617.8,2617.3,4.6229]
[1727194612014,3.82,2617.8,2617.7,0.004]
[1727194613912,7.48677203,2617.8,2617.7,0.004]
[1727194614116,3.82043,2617.5,2617.4,0.004]
[1727194614417,7.11851161,2617.5,2617.4,0.004]
[1727194614575,3.82062,2617.4,2617.1,0.8022]
[1727194615474,3.82075,2617.3,2617.2,0.004]
[1727194615824,3.82043,2617.5,2617.2,0.8062]
[1727194615981,3.8204,2617.6,2617.2,0.8062]
[1727194616733,3.82017,2617.7,2617.2,0.8062]
[1727194616906,3.82017,2617.7,2617.3,3.82072]
[1727194617099,3.82017,2617.7,2617.6,0.004]
[1727194618144,3.82,2617.8,2617.6,0.004]
[1727194618311,3.82,2617.8,2617.3,3.82065]
[1727194618636,3.82,2617.8,2617.7,0.004]
[1727194621746,3.81978,2618.0,2617.7,0.004]
[1727194621967,3.81978,2618.0,2617.9,0.004]
[1727194623719,4.65268,2618.0,2617.9,0.004]
[1727194624750,3.81998,2617.9,2617.4,4.6045]
[1727194624907,4.65268,2618.0,2617.4,4.6045]
[1727194624908,3.82,2617.8,2617.4,4.6045]
[1727194625114,3.82,2617.8,2617.7,0.004]
[1727194625513,7.02218938,2617.8,2617.7,0.004]
[1727194625748,8.18968532,2617.8,2617.7,0.004]
[1727194625918,3.82029,2617.6,2617.5,0.004]
[1727194626107,7.02247938,2617.6,2617.5,0.004]
[1727194626449,8.68878291,2617.6,2617.5,0.004]
[1727194627649,3.82073,2617.3,2617.2,0.004]
[1727194627968,3.82116,2617.0,2616.6,0.8219928]
[1727194629024,7.64216,2617.1,2616.6,4.6436728]
[1727194629237,3.82102,2617.1,2616.6,0.8219928]
[1727194629438,3.82102,2617.1,2616.6,4.6436628]
[1727194629875,3.82102,2617.1,2616.7,3.82154]
[1727194630548,3.82102,2617.1,2616.6,8.4653128]
[1727194630756,3.82102,2617.1,2616.7,3.82158]
[1727194631342,4.65372,2617.3,2616.8,3.82145]
[1727194631547,4.65372,2617.3,2616.7,4.60556]
[1727194631548,3.82095,2617.2,2616.7,4.60556]
[1727194631743,3.82082,2617.3,2616.8,3.82146]
[1727194631975,3.82053,2617.5,2616.8,3.82138]
[1727194632175,3.82053,2617.5,2617.4,0.004]
[1727194632484,6.82053,2617.5,2617.4,0.004]
[1727194635377,3.82053,2617.5,2617.4,0.004]
[1727194638494,3.81986,2617.9,2617.4,0.004]
[1727194638495,3.23589957,2618.1,2617.4,0.004]
[1727194638644,3.81979,2618.0,2617.6,3.82025]
[1727194638849,3.81979,2618.0,2617.9,0.004]
[1727194639479,3.81957,2618.1,2617.9,0.004]
[1727194639691,3.8197,2618.0,2617.9,0.004]
[1727194640348,3.81957,2618.1,2617.9,0.004]
[1727194641378,3.81951,2618.2,2617.9,0.004]
[1727194641689,3.8197,2618.0,2617.9,0.004]
[1727194645078,4.583628,2618.0,2617.9,0.004]
[1727194645275,3.82,2617.8,2617.7,0.004]
[1727194645584,3.82058,2617.4,2617.0,0.784]
[1727194646326,3.20218938,2617.6,2617.2,0.004]
[1727194646613,3.8208,2617.3,2617.0,0.784]
[1727194646973,3.8208,2617.3,2617.2,0.004]
[1727194648115,8.47387,2617.5,2617.2,0.004]
[1727194648291,3.82061,2617.4,2617.0,0.784]
[1727194649787,3.82044,2617.5,2617.0,4.60508]
[1727194650815,3.8206,2617.4,2617.0,4.60508]
[1727194651016,3.8206,2617.4,2617.0,0.784]
[1727194651017,7.02278938,2617.4,2617.0,0.784]
[1727194651217,3.82087,2617.2,2616.7,4.62282]
[1727194652496,3.82076,2617.3,2616.9,3.8213]
[1727194653109,7.6413,2617.4,2616.9,3.8213]
[1727194653292,7.6413,2617.4,2616.7,8.44429]
[1727194653293,3.82082,2617.3,2616.7,8.44429]
[1727194653700,3.8209,2617.2,2616.8,3.82145]
[1727194653897,3.8206,2617.4,2616.9,3.82131]
[1727194654329,7.64131,2617.4,2617.0,0.8013]
[1727194654518,7.64131,2617.4,2617.3,0.004]
[1727194655222,3.8206,2617.4,2617.3,0.004]
[1727194659897,5.363704,2617.4,2617.3,0.004]
[1727194660098,3.82087,2617.2,2617.1,0.004]
[1727194660346,3.82075,2617.3,2616.9,0.004]
[1727194660347,3.82116,2617.0,2616.9,0.004]
[1727194664309,3.82104,2617.1,2616.9,0.004]
[1727194665604,3.82116,2617.0,2616.9,0.004]
[1727194667143,4.68091547,2617.0,2616.9,0.004]
[1727194668319,4.58538,2617.0,2616.9,0.004]
[1727194668522,4.68092013,2617.0,2616.9,0.004]
[1727194669374,3.91670013,2617.0,2616.9,0.004]
[1727194671514,3.82116,2617.0,2616.9,0.004]
[1727194672516,3.91670016,2617.0,2616.9,0.004]
[1727194673034,3.82116,2617.0,2616.9,0.004]
[1727194676790,3.82109,2617.1,2616.9,0.004]
[1727194678373,7.64219,2617.1,2616.9,0.004]
[1727194678551,3.82109,2617.1,2616.9,0.004]
[1727194680419,3.82093,2617.2,2616.9,0.004]
[1727194683029,3.82063,2617.4,2616.9,0.004]
[1727194683187,3.82074,2617.3,2617.0,0.7508]
[1727194683382,3.82051,2617.5,2617.2,0.004]
[1727194683724,3.82051,2617.5,2617.0,0.7508]
[1727194683725,3.82051,2617.5,2617.4,0.004]
[1727194684783,3.82059,2617.4,2617.0,4.5259]
[1727194684986,3.82016,2617.7,2617.1,3.82101]
[1727194685186,3.82016,2617.7,2617.2,3.82077]
[1727194685730,3.8203,2617.6,2617.1,3.82093]
[1727194686235,3.82068,2617.4,2616.9,7.64242]
[1727194686402,3.82068,2617.4,2616.7,3.82153]
[1727194686611,3.91633229,2617.3,2616.7,3.82153]
[1727194686924,3.82116,2617.0,2616.9,0.39923129]
[1727194687128,3.82116,2617.0,2616.6,0.0379928]
[1727194687622,3.82116,2617.0,2616.9,0.0032]
[1727194688783,3.82116,2617.0,2616.6,0.7919928]
[1727194688989,3.82116,2617.0,2616.9,0.0032]
[1727194690135,3.82116,2617.0,2616.6,0.7919928]
[1727194690136,3.82143,2616.9,2616.6,0.7919928]
[1727194690288,3.82116,2617.0,2616.6,0.7919928]
[1727194690492,3.82146,2616.8,2616.6,0.7887928]
[1727194691206,3.8216,2616.7,2616.6,0.0379928]
[1727194691412,7.64303,2616.8,2616.6,0.0411928]
[1727194691733,3.8216,2616.7,2616.6,0.0379928]
[1727194692302,4.6253,2616.7,2616.6,0.0379928]
[1727194693251,4.666133,2616.8,2616.6,0.0411928]
[1727194693538,3.8216,2616.7,2616.6,0.0379928]
[1727194693736,0.8037,2616.9,2616.6,0.0379928]
[1727194693737,3.82138,2616.9,2616.6,0.0379928]
[1727194693951,3.82097,2617.2,2616.7,0.7508]
[1727194694141,3.82097,2617.2,2616.7,4.5723]
[1727194694345,7.64159,2617.3,2617.1,0.754]
[1727194694547,3.82073,2617.3,2617.2,0.0032]
[1727194695257,3.82038,2617.6,2617.2,0.0032]
[1727194696350,4.62378,2617.8,2617.2,0.0032]
[1727194696351,3.82014,2617.7,2617.2,0.0032]
[1727194696504,3.82014,2617.7,2617.3,0.7508]
[1727194696710,3.82014,2617.7,2617.6,0.0032]
[1727194697726,4.29436936,2617.7,2617.6,0.0032]
[1727194697932,4.29436936,2617.7,2617.4,0.0032]
[1727194698190,3.82014,2617.7,2617.6,0.0032]
[1727194698436,5.67552516,2618.2,2617.6,0.0032]
[1727194698632,3.81967,2618.1,2617.7,0.7508]
[1727194698853,3.81921,2618.4,2618.0,0.0032]
[1727194699150,3.81921,2618.4,2618.3,0.0032]
[1727194699151,1.08460555,2618.4,2618.3,0.0032]
[1727194699454,3.81912,2618.4,2618.3,0.0032]
[1727194699608,3.81905,2618.5,2618.3,0.0032]
[1727194699818,3.81912,2618.4,2618.3,0.0032]
[1727194700913,4.62245,2618.7,2618.3,0.0032]
[1727194701113,3.81899,2618.5,2618.3,0.0032]
[1727194701323,0.8037,2618.7,2618.3,0.0032]
[1727194701324,4.201019,2618.4,2618.3,0.0032]
[1727194701529,0.381899,2618.4,2618.3,0.0032]
[1727194701745,4.62248,2618.7,2618.3,0.0032]
[1727194701914,3.8037,2618.7,2618.3,0.0032]
[1727194702110,3.81898,2618.5,2618.3,0.0032]
[1727194702547,7.02411718,2618.4,2618.3,0.0032]
[1727194702750,3.81912,2618.4,2618.0,0.0032]
[1727194702909,4.201032,2618.4,2618.3,0.0032]
[1727194704646,4.201032,2618.4,2618.0,0.0032]
[1727194704647,3.81948,2618.2,2618.0,0.0032]
[1727194704854,3.81948,2618.2,2617.8,0.7508]
[1727194705017,3.81948,2618.2,2618.1,0.0032]
[1727194706367,4.6215312,2618.2,2618.1,0.0032]
[1727194706563,4.6214612,2618.2,2618.1,0.0032]
[1727194709220,3.81912,2618.4,2618.1,0.0032]
[1727194710120,3.81929,2618.3,2618.1,0.0032]
[1727194710959,3.81912,2618.4,2618.1,0.0032]
[1727194712258,3.81895,2618.6,2618.1,0.0032]
[1727194712420,3.81895,2618.6,2618.2,0.7752]
[1727194712626,7.63729,2618.8,2618.5,0.0032]
[1727194712856,3.81883,2618.6,2618.5,0.0032]
[1727194713044,1.16189872,2618.8,2618.5,0.0032]
[1727194713045,3.81873,2618.7,2618.5,0.0032]
[1727194713358,7.63751,2618.7,2618.5,0.0032]
[1727194713655,3.81883,2618.6,2618.5,0.0032]
[1727194717056,7.79652718,2618.6,2618.5,0.0032]
[1727194717273,3.81927,2618.3,2618.2,0.0032]
[1727194717477,7.79696718,2618.3,2618.2,0.0032]
[1727194717795,3.81956,2618.1,2617.8,7.41]
[1727194721259,3.81943,2618.2,2617.8,7.41]
[1727194721582,3.81972,2618.0,2617.8,7.41]
[1727194722692,3.81972,2618.0,2617.6,0.7752]
[1727194722992,3.81972,2618.0,2617.9,0.0032]
[1727194724284,3.81943,2618.2,2617.9,0.0032]
[1727194724492,3.81959,2618.1,2617.9,0.0032]
[1727194724807,0.459213,2618.2,2618.0,4.5949]
[1727194725004,5.86966559,2618.6,2618.1,0.0032]
[1727194725204,4.59155,2618.6,2618.5,0.0032]
[1727194725517,4.98050872,2618.8,2618.5,0.0032]
[1727194726206,7.02376718,2618.7,2618.5,0.0032]
[1727194726379,5.01925759,2618.6,2618.5,0.0032]
[1727194726714,5.80135759,2618.6,2618.5,0.0032]
[1727194728466,4.98046872,2618.8,2618.5,0.0032]
[1727194728810,3.81811,2619.1,2618.6,3.81882]
[1727194729007,3.81826,2619.0,2618.5,3.81885]
[1727194729323,0.7821,2619.1,2618.9,0.0032]
[1727194729526,0.066439,2619.6,2618.9,0.0032]
[1727194729665,0.066439,2619.6,2618.8,0.753]
[1727194729666,0.8200928,2619.7,2619.3,3.81779]
[1727194729871,0.8200928,2619.7,2619.5,0.0032]
[1727194730580,7.84232998,2619.7,2619.3,0.0032]
[1727194730781,4.02508998,2619.7,2619.5,0.0032]
[1727194731378,0.784218,2619.6,2619.5,0.0032]
[1727194733008,0.784218,2619.6,2619.2,4.57093]
[1727194735316,11.65967998,2619.7,2619.2,4.57093]
[1727194735317,0.0379928,2619.7,2619.2,0.753]
[1727194735521,3.8552328,2619.7,2619.6,0.0032]
[1727194737199,7.84232998,2619.7,2619.6,0.0032]
[1727194737721,3.8552328,2619.7,2619.6,0.0032]
[1727194737876,0.0379928,2619.7,2619.6,3.82057]
[1727194738075,0.0379928,2619.7,2619.6,4.57357]
[1727194742298,0.0379928,2619.7,2619.6,4.57357]
[1727194742599,0.0379928,2619.7,2619.6,0.7562]
[1727194743332,0.0379928,2619.7,2619.6,0.0032]
[1727194743798,3.8552228,2619.7,2619.6,0.0032]
[1727194744001,8.22481098,2619.7,2619.6,0.0032]
[1727194744298,5.0198138,2619.7,2619.6,0.0032]
[1727194744736,8.22481098,2619.7,2619.6,0.0032]